[Event "*** SCC Grand Prix: Titled Tuesday Blitz"]
[Site "Chess.com"]
[Date "2020.08.25"]
[Round "6"]
[White "mirceaparligras"]
[Black "RaunakSadhwani2005"]
[Result "0-1"]
[WhiteElo "2672"]
[BlackElo "2860"]
[TimeControl "180+1"]
[EndTime "11:09:15 PDT"]
[Termination "RaunakSadhwani2005 won by resignation"]

1. e3 {[%clk 0:03:00.9]} 1... Nf6 {[%clk 0:02:58.5]} 2. d4 {[%clk 0:03:01.1]}
2... g6 {[%clk 0:02:57.1]} 3. Nf3 {[%clk 0:03:00.3]} 3... Bg7 {[%clk 0:02:58]}
4. c4 {[%clk 0:03:00.5]} 4... O-O {[%clk 0:02:58.9]} 5. Be2 {[%clk 0:03:00.6]}
5... d6 {[%clk 0:02:59.2]} 6. O-O {[%clk 0:03:00.6]} 6... Nbd7 {[%clk
0:02:59.8]} 7. Nc3 {[%clk 0:03:00.5]} 7... e5 {[%clk 0:03:00.3]} 8. Qc2 {[%clk
0:02:57.9]} 8... Re8 {[%clk 0:03:00.3]} 9. b4 {[%clk 0:02:52.9]} 9... e4 {[%clk
0:02:59.2]} 10. Nd2 {[%clk 0:02:52.7]} 10... Qe7 {[%clk 0:02:59.8]} 11. a4
{[%clk 0:02:43.4]} 11... Nf8 {[%clk 0:02:59.9]} 12. Ba3 {[%clk 0:02:43.2]} 12...
Bf5 {[%clk 0:02:58.4]} 13. Rfc1 {[%clk 0:02:41.6]} 13... Ne6 {[%clk 0:02:50.9]}
14. Qd1 {[%clk 0:02:37.5]} 14... h5 {[%clk 0:02:45.6]} 15. b5 {[%clk 0:02:35.4]}
15... h4 {[%clk 0:02:41.2]} 16. h3 {[%clk 0:02:31.6]} 16... Qd7 {[%clk
0:02:37.5]} 17. a5 {[%clk 0:02:20.3]} 17... Ng5 {[%clk 0:02:36.8]} 18. Bf1
{[%clk 0:02:20.5]} 18... Rad8 {[%clk 0:02:22.1]} 19. b6 {[%clk 0:02:17.7]} 19...
axb6 {[%clk 0:02:13.3]} 20. axb6 {[%clk 0:02:18.6]} 20... c6 {[%clk 0:02:14.2]}
21. Bb4 {[%clk 0:02:10.1]} 21... Nxh3+ {[%clk 0:02:00.2]} 22. gxh3 {[%clk
0:02:10]} 22... Bxh3 {[%clk 0:02:01.1]} 23. Bxh3 {[%clk 0:02:10.3]} 23... Qxh3
{[%clk 0:02:01.7]} 24. Qf1 {[%clk 0:02:10.8]} 24... Qf5 {[%clk 0:02:01.9]} 25.
Ra5 {[%clk 0:01:45.5]} 25... c5 {[%clk 0:01:57.4]} 26. dxc5 {[%clk 0:00:49.8]}
26... dxc5 {[%clk 0:01:58.3]} 27. Rxc5 {[%clk 0:00:49.8]} 27... Qg4+ {[%clk
0:01:57]} 28. Qg2 {[%clk 0:00:50.4]} 28... Qxg2+ {[%clk 0:01:46.2]} 29. Kxg2
{[%clk 0:00:51.3]} 29... Rxd2 {[%clk 0:01:46.7]} 30. Nd5 {[%clk 0:00:51.5]}
30... Ra2 {[%clk 0:01:19.1]} 31. Nxf6+ {[%clk 0:00:36.9]} 31... Bxf6 {[%clk
0:01:20]} 32. Rc7 {[%clk 0:00:34.5]} 32... h3+ {[%clk 0:01:05.2]} 33. Kxh3
{[%clk 0:00:34.3]} 33... Rxf2 {[%clk 0:01:03.4]} 34. Bd6 {[%clk 0:00:32.5]}
34... Rf3+ {[%clk 0:01:01.3]} 35. Kg2 {[%clk 0:00:31.5]} 35... Rxe3 {[%clk
0:00:31.9]} 36. Rxb7 {[%clk 0:00:31.5]} 36... Rb3 {[%clk 0:00:32.2]} 37. Rf1
{[%clk 0:00:24.9]} 37... Bd4 {[%clk 0:00:24.3]} 38. c5 {[%clk 0:00:19.3]} 38...
e3 {[%clk 0:00:23.5]} 39. Re7 {[%clk 0:00:11.3]} 39... Rxe7 {[%clk 0:00:18.7]}
40. Bxe7 {[%clk 0:00:12.2]} 40... f5 {[%clk 0:00:18.9]} 41. Kf3 {[%clk
0:00:07.8]} 41... Kf7 {[%clk 0:00:19.4]} 42. Bd6 {[%clk 0:00:07.3]} 42... Ke6
{[%clk 0:00:19.8]} 43. Rd1 {[%clk 0:00:06.1]} 43... Kd5 {[%clk 0:00:12.7]} 44.
c6 {[%clk 0:00:02.6]} 44... Rxb6 {[%clk 0:00:10.3]} 45. c7 {[%clk 0:00:01.3]}
45... Rc6 {[%clk 0:00:10.8]} 46. Bf4 {[%clk 0:00:01.5]} 46... Rc3 {[%clk
0:00:07.1]} 47. c8=Q {[%clk 0:00:01.8]} 47... Rxc8 {[%clk 0:00:06.8]} 48. Bxe3
{[%clk 0:00:02.5]} 48... Rc4 {[%clk 0:00:07.5]} 49. Kf4 {[%clk 0:00:03]} 49...
Kc5 {[%clk 0:00:07.4]} 50. Rxd4 {[%clk 0:00:02.4]} 50... Rxd4+ {[%clk
0:00:08.3]} 51. Kg5 {[%clk 0:00:03.3]} 51... Kd5 {[%clk 0:00:08.5]} 52. Kxg6
{[%clk 0:00:03.3]} 52... f4 {[%clk 0:00:08.7]} 53. Bf2 {[%clk 0:00:02.6]} 53...
f3 {[%clk 0:00:08.3]} 54. Kf5 {[%clk 0:00:02.1]} 54... Rd2 {[%clk 0:00:08.4]}
0-1

[Event "*** SCC Grand Prix: Titled Tuesday Blitz"]
[Site "Chess.com"]
[Date "2020.08.25"]
[Round "6"]
[White "stepanosinovsky"]
[Black "NotFischer"]
[Result "1-0"]
[WhiteElo "2374"]
[BlackElo "2176"]
[TimeControl "180+1"]
[EndTime "11:09:15 PDT"]
[Termination "stepanosinovsky won on time"]

1. e4 {[%clk 0:03:00.9]} 1... d5 {[%clk 0:02:59.8]} 2. exd5 {[%clk 0:03:00.7]}
2... Nf6 {[%clk 0:03:00.1]} 3. Nc3 {[%clk 0:03:01.6]} 3... Nxd5 {[%clk
0:03:00.4]} 4. Nge2 {[%clk 0:02:58.6]} 4... Nc6 {[%clk 0:03:00]} 5. Nxd5 {[%clk
0:02:57.1]} 5... Qxd5 {[%clk 0:02:59.7]} 6. Nc3 {[%clk 0:02:58]} 6... Qe5+
{[%clk 0:02:50.4]} 7. Qe2 {[%clk 0:02:54]} 7... Bg4 {[%clk 0:02:45.7]} 8. Qxe5
{[%clk 0:02:52.6]} 8... Nxe5 {[%clk 0:02:45.8]} 9. d3 {[%clk 0:02:45.5]} 9...
O-O-O {[%clk 0:02:44.8]} 10. Bf4 {[%clk 0:02:41.6]} 10... Ng6 {[%clk 0:02:42.4]}
11. Be3 {[%clk 0:02:40.1]} 11... a6 {[%clk 0:02:42.3]} 12. h3 {[%clk 0:02:38.1]}
12... Bd7 {[%clk 0:02:35.5]} 13. O-O-O {[%clk 0:02:27.1]} 13... Bc6 {[%clk
0:02:35.8]} 14. Rg1 {[%clk 0:02:25.8]} 14... e5 {[%clk 0:02:35.3]} 15. Be2
{[%clk 0:02:24.5]} 15... Bb4 {[%clk 0:02:26.7]} 16. g3 {[%clk 0:02:18.4]} 16...
Bxc3 {[%clk 0:02:21.5]} 17. bxc3 {[%clk 0:02:19.3]} 17... f5 {[%clk 0:02:21.7]}
18. f4 {[%clk 0:02:13.2]} 18... exf4 {[%clk 0:02:17.9]} 19. gxf4 {[%clk
0:02:12.7]} 19... Rhe8 {[%clk 0:02:17.7]} 20. Kd2 {[%clk 0:02:12.6]} 20... Re6
{[%clk 0:01:44.8]} 21. Rg3 {[%clk 0:02:11.9]} 21... Rde8 {[%clk 0:01:41.7]} 22.
Rf1 {[%clk 0:02:11.9]} 22... b6 {[%clk 0:01:27]} 23. Rf2 {[%clk 0:02:10.7]}
23... Kb7 {[%clk 0:01:25.1]} 24. Bd4 {[%clk 0:02:05.2]} 24... Nxf4 {[%clk
0:01:12.2]} 25. Bd1 {[%clk 0:01:56.9]} 25... g5 {[%clk 0:01:05.7]} 26. h4 {[%clk
0:01:46.5]} 26... h6 {[%clk 0:01:04.3]} 27. hxg5 {[%clk 0:01:44.1]} 27... hxg5
{[%clk 0:01:05.2]} 28. Be3 {[%clk 0:01:23.1]} 28... Rh8 {[%clk 0:00:19.7]} 29.
Rxg5 {[%clk 0:01:15.8]} 29... Nh3 {[%clk 0:00:17.7]} 30. Rh2 {[%clk 0:01:14.8]}
30... Nxg5 {[%clk 0:00:14.3]} 31. Rxh8 {[%clk 0:01:14]} 31... Nf3+ {[%clk
0:00:14.9]} 32. Bxf3 {[%clk 0:01:05.7]} 32... Bxf3 {[%clk 0:00:15.8]} 33. Rh7
{[%clk 0:01:05.3]} 33... Rc6 {[%clk 0:00:10.4]} 34. Rf7 {[%clk 0:00:57.6]} 34...
Bg4 {[%clk 0:00:11.3]} 35. c4 {[%clk 0:00:56.7]} 35... Kc8 {[%clk 0:00:11.7]}
36. Kc3 {[%clk 0:00:55.6]} 36... b5 {[%clk 0:00:11.8]} 37. c5 {[%clk 0:00:55.2]}
37... Kd8 {[%clk 0:00:09.7]} 38. d4 {[%clk 0:00:49]} 38... Ke8 {[%clk
0:00:09.9]} 39. Rg7 {[%clk 0:00:44.4]} 39... Bf3 {[%clk 0:00:10.3]} 40. Bf4
{[%clk 0:00:40.9]} 40... Bd5 {[%clk 0:00:10.4]} 41. a3 {[%clk 0:00:36.8]} 41...
Kd8 {[%clk 0:00:09.1]} 42. Kb4 {[%clk 0:00:34.1]} 42... Bc4 {[%clk 0:00:07.6]}
43. Be5 {[%clk 0:00:31.7]} 43... Kc8 {[%clk 0:00:07.4]} 44. Re7 {[%clk 0:00:28]}
44... Kb7 {[%clk 0:00:07.3]} 45. a4 {[%clk 0:00:24.2]} 45... a5+ {[%clk
0:00:07.6]} 46. Kc3 {[%clk 0:00:21.4]} 46... f4 {[%clk 0:00:04.5]} 47. Bxf4
{[%clk 0:00:20.2]} 47... Ka6 {[%clk 0:00:05.2]} 48. axb5+ {[%clk 0:00:18.4]}
48... Bxb5 {[%clk 0:00:05.5]} 49. Bxc7 {[%clk 0:00:16.6]} 49... a4 {[%clk
0:00:05.8]} 50. Bb6 {[%clk 0:00:16.2]} 50... Rxb6 {[%clk 0:00:06]} 51. cxb6
{[%clk 0:00:15.9]} 51... Kxb6 {[%clk 0:00:06.9]} 52. Kb4 {[%clk 0:00:16.1]}
52... Bc6 {[%clk 0:00:06.9]} 53. c4 {[%clk 0:00:16.4]} 1-0

[Event "*** SCC Grand Prix: Titled Tuesday Blitz"]
[Site "Chess.com"]
[Date "2020.08.25"]
[Round "6"]
[White "Keures"]
[Black "Klavdia_Nik"]
[Result "1-0"]
[WhiteElo "2294"]
[BlackElo "2063"]
[TimeControl "180+1"]
[EndTime "11:09:15 PDT"]
[Termination "Keures won on time"]

1. d4 {[%clk 0:03:00.9]} 1... Nf6 {[%clk 0:01:44.1]} 2. c4 {[%clk 0:02:58.9]}
2... c5 {[%clk 0:01:44.3]} 3. d5 {[%clk 0:02:59.1]} 3... b5 {[%clk 0:01:43.8]}
4. cxb5 {[%clk 0:02:59.6]} 4... a6 {[%clk 0:01:43.3]} 5. bxa6 {[%clk 0:03:00.3]}
5... Bxa6 {[%clk 0:01:42.6]} 6. Nc3 {[%clk 0:03:00.7]} 6... d6 {[%clk
0:01:42.5]} 7. e4 {[%clk 0:03:00.8]} 7... Bxf1 {[%clk 0:01:42]} 8. Kxf1 {[%clk
0:03:01.7]} 8... g6 {[%clk 0:01:42.3]} 9. Nf3 {[%clk 0:03:02.1]} 9... Bg7 {[%clk
0:01:43]} 10. g3 {[%clk 0:03:02.8]} 10... O-O {[%clk 0:01:43.1]} 11. Kg2 {[%clk
0:03:03.4]} 11... Nbd7 {[%clk 0:01:42.9]} 12. h3 {[%clk 0:03:03.6]} 12... Qa5
{[%clk 0:01:41.4]} 13. Re1 {[%clk 0:03:03.1]} 13... Rfb8 {[%clk 0:01:41.7]} 14.
e5 {[%clk 0:02:44.2]} 14... Ne8 {[%clk 0:01:15.6]} 15. exd6 {[%clk 0:02:35.3]}
15... exd6 {[%clk 0:01:10.5]} 16. Qc2 {[%clk 0:02:31.7]} 16... Qb4 {[%clk
0:00:54.5]} 17. Re4 {[%clk 0:02:26.4]} 17... Qb7 {[%clk 0:00:52.7]} 18. a4
{[%clk 0:01:58.2]} 18... Ndf6 {[%clk 0:00:51.5]} 19. Re2 {[%clk 0:01:43.7]}
19... Nxd5 {[%clk 0:00:46]} 20. Nxd5 {[%clk 0:01:40.7]} 20... Qxd5 {[%clk
0:00:46.2]} 21. Ra3 {[%clk 0:01:30]} 21... Qc6 {[%clk 0:00:31.7]} 22. Rb3 {[%clk
0:01:11.7]} 22... Nc7 {[%clk 0:00:25.3]} 23. Rxb8+ {[%clk 0:01:10.9]} 23... Rxb8
{[%clk 0:00:26.2]} 24. Qe4 {[%clk 0:00:29.9]} 24... Qxe4 {[%clk 0:00:20.3]} 25.
Rxe4 {[%clk 0:00:30.8]} 25... Bxb2 {[%clk 0:00:17.3]} 26. Bxb2 {[%clk
0:00:31.7]} 26... Rxb2 {[%clk 0:00:16.8]} 27. Re7 {[%clk 0:00:32.6]} 27... Ne6
{[%clk 0:00:15.7]} 28. Rd7 {[%clk 0:00:29.6]} 28... Rb6 {[%clk 0:00:15.7]} 29.
h4 {[%clk 0:00:27.3]} 29... h5 {[%clk 0:00:14.8]} 30. Nd2 {[%clk 0:00:25.4]}
30... Ra6 {[%clk 0:00:12.9]} 31. Nc4 {[%clk 0:00:23.1]} 31... d5 {[%clk
0:00:12.1]} 32. Rxd5 {[%clk 0:00:19.9]} 32... Rxa4 {[%clk 0:00:12.4]} 33. Ne5
{[%clk 0:00:19.8]} 33... Kg7 {[%clk 0:00:11]} 34. Rd7 {[%clk 0:00:19.6]} 34...
Kg8 {[%clk 0:00:04.4]} 35. Nxf7 {[%clk 0:00:19.3]} 35... c4 {[%clk 0:00:04.1]}
36. Ne5 {[%clk 0:00:14.1]} 36... c3 {[%clk 0:00:04.1]} 37. Rd1 {[%clk
0:00:13.3]} 37... Ra5 {[%clk 0:00:03.6]} 38. Nxg6 {[%clk 0:00:11.4]} 38... Rc5
{[%clk 0:00:03.5]} 39. Nf4 {[%clk 0:00:06.3]} 39... c2 {[%clk 0:00:03.3]} 40.
Rc1 {[%clk 0:00:06.1]} 40... Nd4 {[%clk 0:00:03.8]} 41. Nd3 {[%clk 0:00:05]}
41... Rc3 {[%clk 0:00:04.1]} 42. Ne1 {[%clk 0:00:05.1]} 42... Nb3 {[%clk
0:00:04.2]} 43. Rxc2 {[%clk 0:00:05.1]} 43... Rxc2 {[%clk 0:00:02.7]} 44. Nxc2
{[%clk 0:00:06]} 44... Nd2 {[%clk 0:00:02.9]} 45. Ne3 {[%clk 0:00:06.9]} 45...
Ne4 {[%clk 0:00:03]} 46. Kf3 {[%clk 0:00:06.9]} 46... Nf6 {[%clk 0:00:03.6]} 47.
Kf4 {[%clk 0:00:07.1]} 47... Kh7 {[%clk 0:00:04.2]} 48. Kg5 {[%clk 0:00:07.5]}
48... Ne4+ {[%clk 0:00:02.7]} 49. Kxh5 {[%clk 0:00:08]} 49... Nxf2 {[%clk
0:00:03.3]} 50. g4 {[%clk 0:00:07.8]} 50... Ne4 {[%clk 0:00:03]} 51. g5 {[%clk
0:00:08.4]} 1-0

[Event "*** SCC Grand Prix: Titled Tuesday Blitz"]
[Site "Chess.com"]
[Date "2020.08.25"]
[Round "6"]
[White "googlegoom"]
[Black "VladaSviridova"]
[Result "1-0"]
[WhiteElo "2447"]
[BlackElo "2290"]
[TimeControl "180+1"]
[EndTime "11:09:16 PDT"]
[Termination "googlegoom won by checkmate"]

1. Nf3 {[%clk 0:03:00.9]} 1... d5 {[%clk 0:02:59.8]} 2. b3 {[%clk 0:02:55.1]}
2... Nf6 {[%clk 0:02:54.5]} 3. Bb2 {[%clk 0:02:54.8]} 3... Bf5 {[%clk
0:02:53.1]} 4. e3 {[%clk 0:02:55.1]} 4... e6 {[%clk 0:02:53.1]} 5. Be2 {[%clk
0:02:55.2]} 5... h6 {[%clk 0:02:53.3]} 6. O-O {[%clk 0:02:55.3]} 6... Be7 {[%clk
0:02:53.6]} 7. d4 {[%clk 0:02:56]} 7... Nbd7 {[%clk 0:02:47.9]} 8. Nbd2 {[%clk
0:02:56.5]} 8... O-O {[%clk 0:02:47.2]} 9. c4 {[%clk 0:02:57.1]} 9... c6 {[%clk
0:02:44.4]} 10. a3 {[%clk 0:02:56.2]} 10... a5 {[%clk 0:02:44]} 11. Bc3 {[%clk
0:02:55.3]} 11... Bd6 {[%clk 0:02:30.3]} 12. b4 {[%clk 0:02:54.4]} 12... axb4
{[%clk 0:02:25.7]} 13. axb4 {[%clk 0:02:55.3]} 13... Ne4 {[%clk 0:02:02.4]} 14.
Nxe4 {[%clk 0:02:54.6]} 14... Bxe4 {[%clk 0:01:59.6]} 15. Nd2 {[%clk 0:02:55.5]}
15... Bg6 {[%clk 0:01:57.6]} 16. Qb3 {[%clk 0:02:54.8]} 16... Qe7 {[%clk
0:01:45.7]} 17. f4 {[%clk 0:02:41.3]} 17... Bc7 {[%clk 0:01:30.3]} 18. b5 {[%clk
0:02:20.1]} 18... cxb5 {[%clk 0:01:05.2]} 19. Bb4 {[%clk 0:01:48.2]} 19... bxc4
{[%clk 0:00:29.8]} 20. Bxe7 {[%clk 0:01:44.9]} 20... cxb3 {[%clk 0:00:29.6]} 21.
Bxf8 {[%clk 0:01:45.2]} 21... Rxf8 {[%clk 0:00:24.5]} 22. Nxb3 {[%clk
0:01:44.5]} 22... Bd6 {[%clk 0:00:18.1]} 23. Bb5 {[%clk 0:01:33.7]} 23... Nf6
{[%clk 0:00:16.6]} 24. Nd2 {[%clk 0:01:25.5]} 24... Ne4 {[%clk 0:00:15.8]} 25.
Nxe4 {[%clk 0:01:24.2]} 25... Bxe4 {[%clk 0:00:15.9]} 26. Rfc1 {[%clk
0:01:21.3]} 26... b6 {[%clk 0:00:15.6]} 27. Ra7 {[%clk 0:00:57.3]} 27... Bb4
{[%clk 0:00:14.6]} 28. Rcc7 {[%clk 0:00:49.6]} 28... Ba5 {[%clk 0:00:14.8]} 29.
Kf2 {[%clk 0:00:49.1]} 29... h5 {[%clk 0:00:13.8]} 30. g3 {[%clk 0:00:48.3]}
30... g6 {[%clk 0:00:13.6]} 31. h3 {[%clk 0:00:48.4]} 31... Kg7 {[%clk
0:00:13.7]} 32. Bd7 {[%clk 0:00:47.7]} 32... Kf6 {[%clk 0:00:13]} 33. Rab7
{[%clk 0:00:41]} 33... Bb4 {[%clk 0:00:11.8]} 34. Rc8 {[%clk 0:00:37.2]} 34...
Rxc8 {[%clk 0:00:10.9]} 35. Bxc8 {[%clk 0:00:38.1]} 35... Ba5 {[%clk 0:00:10.9]}
36. Bd7 {[%clk 0:00:38.5]} 36... Bd3 {[%clk 0:00:11.1]} 37. Be8 {[%clk
0:00:36.6]} 37... Kg7 {[%clk 0:00:11.2]} 38. Bxf7 {[%clk 0:00:34.3]} 38... b5
{[%clk 0:00:10.5]} 39. Bxe6+ {[%clk 0:00:33.4]} 39... Kf8 {[%clk 0:00:10.6]} 40.
Bxd5 {[%clk 0:00:31.8]} 40... b4 {[%clk 0:00:10.9]} 41. e4 {[%clk 0:00:23.5]}
41... b3 {[%clk 0:00:10.6]} 42. Rxb3 {[%clk 0:00:20.5]} 42... Bc2 {[%clk
0:00:10.8]} 43. Rb7 {[%clk 0:00:19.1]} 43... Bc3 {[%clk 0:00:09.9]} 44. Ke3
{[%clk 0:00:18.1]} 44... Ba4 {[%clk 0:00:08.7]} 45. Bf7 {[%clk 0:00:16]} 45...
Be1 {[%clk 0:00:08.3]} 46. g4 {[%clk 0:00:15.4]} 46... hxg4 {[%clk 0:00:07.9]}
47. hxg4 {[%clk 0:00:16.3]} 47... g5 {[%clk 0:00:07.8]} 48. fxg5 {[%clk
0:00:15.5]} 48... Bh4 {[%clk 0:00:07.7]} 49. g6 {[%clk 0:00:15.3]} 49... Bg5+
{[%clk 0:00:08]} 50. Kd3 {[%clk 0:00:15.2]} 50... Bc6 {[%clk 0:00:07.2]} 51.
Rb8+ {[%clk 0:00:14.3]} 51... Kg7 {[%clk 0:00:07.4]} 52. Rg8+ {[%clk 0:00:13.5]}
52... Kf6 {[%clk 0:00:07.7]} 53. d5 {[%clk 0:00:13.8]} 53... Bb5+ {[%clk
0:00:07.5]} 54. Kd4 {[%clk 0:00:13]} 54... Bc1 {[%clk 0:00:07.2]} 55. e5+ {[%clk
0:00:13.3]} 55... Ke7 {[%clk 0:00:06.5]} 56. d6+ {[%clk 0:00:13.2]} 56... Kd7
{[%clk 0:00:06.2]} 57. Kc5 {[%clk 0:00:13.4]} 57... Ba4 {[%clk 0:00:05.5]} 58.
e6# {[%clk 0:00:13.6]} 1-0

[Event "*** SCC Grand Prix: Titled Tuesday Blitz"]
[Site "Chess.com"]
[Date "2020.08.25"]
[Round "6"]
[White "Izoria123"]
[Black "crackcubano"]
[Result "1/2-1/2"]
[WhiteElo "2839"]
[BlackElo "2653"]
[TimeControl "180+1"]
[EndTime "11:09:20 PDT"]
[Termination "Game drawn by stalemate"]

1. e4 {[%clk 0:03:00.9]} 1... c5 {[%clk 0:02:59.4]} 2. Nf3 {[%clk 0:03:00.5]}
2... d6 {[%clk 0:02:58]} 3. c3 {[%clk 0:03:00.6]} 3... Nf6 {[%clk 0:02:57.2]} 4.
Be2 {[%clk 0:03:01.2]} 4... g6 {[%clk 0:02:56.7]} 5. O-O {[%clk 0:03:01]} 5...
Bg7 {[%clk 0:02:57.4]} 6. Bb5+ {[%clk 0:03:01.2]} 6... Bd7 {[%clk 0:02:53.9]} 7.
Bxd7+ {[%clk 0:03:01]} 7... Nbxd7 {[%clk 0:02:53.4]} 8. Re1 {[%clk 0:03:01.9]}
8... O-O {[%clk 0:02:53.1]} 9. d4 {[%clk 0:03:01.7]} 9... e6 {[%clk 0:02:52.6]}
10. Bf4 {[%clk 0:02:47.5]} 10... cxd4 {[%clk 0:02:24.4]} 11. cxd4 {[%clk
0:02:46.6]} 11... Nb6 {[%clk 0:02:23.4]} 12. Nc3 {[%clk 0:02:45]} 12... d5
{[%clk 0:02:16.5]} 13. e5 {[%clk 0:02:44.6]} 13... Ne4 {[%clk 0:02:12.1]} 14.
Nxe4 {[%clk 0:02:43.2]} 14... dxe4 {[%clk 0:02:13]} 15. Rxe4 {[%clk 0:02:43.6]}
15... Qd5 {[%clk 0:02:12.9]} 16. Re2 {[%clk 0:02:40.3]} 16... Rac8 {[%clk
0:02:11.3]} 17. b3 {[%clk 0:02:38]} 17... Rc6 {[%clk 0:02:09.6]} 18. Rc2 {[%clk
0:02:37.5]} 18... Rfc8 {[%clk 0:02:08.4]} 19. Rac1 {[%clk 0:02:36.6]} 19... Qe4
{[%clk 0:02:03.6]} 20. Rxc6 {[%clk 0:02:36]} 20... Rxc6 {[%clk 0:02:04.5]} 21.
Rxc6 {[%clk 0:02:35.8]} 21... Qxc6 {[%clk 0:02:04.4]} 22. Qc1 {[%clk 0:02:35.7]}
22... Qe4 {[%clk 0:02:02.7]} 23. h4 {[%clk 0:02:23.8]} 23... Bf8 {[%clk
0:01:53.2]} 24. Bh6 {[%clk 0:02:22.6]} 24... Be7 {[%clk 0:01:30.7]} 25. Qc7
{[%clk 0:02:15.9]} 25... Bf8 {[%clk 0:01:05.5]} 26. Bxf8 {[%clk 0:01:48.6]}
26... Qb1+ {[%clk 0:01:00.2]} 27. Kh2 {[%clk 0:01:46.5]} 27... Kxf8 {[%clk
0:01:01.1]} 28. Qd8+ {[%clk 0:01:36.3]} 28... Kg7 {[%clk 0:00:59.6]} 29. Qf6+
{[%clk 0:01:35.5]} 29... Kg8 {[%clk 0:00:59.2]} 30. Ng5 {[%clk 0:00:32.1]} 30...
Qf5 {[%clk 0:00:57.2]} 31. Qxf5 {[%clk 0:00:32.3]} 31... gxf5 {[%clk 0:00:56.4]}
32. Nf3 {[%clk 0:00:32.1]} 32... Nd5 {[%clk 0:00:55.9]} 33. g3 {[%clk
0:00:29.4]} 33... b5 {[%clk 0:00:54]} 34. Nd2 {[%clk 0:00:23.5]} 34... b4 {[%clk
0:00:51.2]} 35. Kg2 {[%clk 0:00:19.1]} 35... Nc3 {[%clk 0:00:50.4]} 36. Kf3
{[%clk 0:00:19.7]} 36... Nxa2 {[%clk 0:00:50.3]} 37. Ke3 {[%clk 0:00:20]} 37...
Nc1 {[%clk 0:00:48.6]} 38. f3 {[%clk 0:00:19.5]} 38... a5 {[%clk 0:00:47.7]} 39.
g4 {[%clk 0:00:19.6]} 39... fxg4 {[%clk 0:00:47.2]} 40. fxg4 {[%clk 0:00:20.5]}
40... h6 {[%clk 0:00:47.2]} 41. h5 {[%clk 0:00:20.5]} 41... Kg7 {[%clk
0:00:46.7]} 42. Ke4 {[%clk 0:00:20.6]} 42... Kf8 {[%clk 0:00:18.2]} 43. d5
{[%clk 0:00:20.5]} 43... exd5+ {[%clk 0:00:17.9]} 44. Kxd5 {[%clk 0:00:21.4]}
44... Nd3 {[%clk 0:00:18]} 45. Kd4 {[%clk 0:00:20.5]} 45... Nf2 {[%clk 0:00:18]}
46. Kc4 {[%clk 0:00:19.9]} 46... Nxg4 {[%clk 0:00:17.4]} 47. Kb5 {[%clk
0:00:20.8]} 47... Nxe5 {[%clk 0:00:16.6]} 48. Kxa5 {[%clk 0:00:21.4]} 48... Nd3
{[%clk 0:00:16.9]} 49. Kb5 {[%clk 0:00:21.8]} 49... Kg7 {[%clk 0:00:17.3]} 50.
Kc4 {[%clk 0:00:22.1]} 50... Nc1 {[%clk 0:00:16]} 51. Kxb4 {[%clk 0:00:22.6]}
51... Kf6 {[%clk 0:00:15.4]} 52. Kc3 {[%clk 0:00:22.6]} 52... Nxb3 {[%clk
0:00:15.3]} 53. Nxb3 {[%clk 0:00:22.4]} 53... Kg5 {[%clk 0:00:15.9]} 54. Kd4
{[%clk 0:00:23.3]} 54... Kxh5 {[%clk 0:00:16]} 55. Ke3 {[%clk 0:00:24.2]} 55...
Kg4 {[%clk 0:00:16.7]} 56. Nc5 {[%clk 0:00:23.5]} 56... h5 {[%clk 0:00:17.6]}
57. Kf2 {[%clk 0:00:22.5]} 57... h4 {[%clk 0:00:17.9]} 58. Nd3 {[%clk
0:00:22.9]} 58... f5 {[%clk 0:00:18]} 59. Ne5+ {[%clk 0:00:22.7]} 59... Kf4
{[%clk 0:00:17.2]} 60. Ng6+ {[%clk 0:00:22.8]} 60... Kg5 {[%clk 0:00:17.2]} 61.
Nxh4 {[%clk 0:00:22.1]} 61... Kxh4 {[%clk 0:00:17.1]} 62. Kf3 {[%clk 0:00:23]}
62... Kg5 {[%clk 0:00:17.1]} 63. Kg3 {[%clk 0:00:23.3]} 63... Kg6 {[%clk
0:00:17.2]} 64. Kf4 {[%clk 0:00:24.2]} 64... Kf6 {[%clk 0:00:17.7]} 65. Kf3
{[%clk 0:00:25.1]} 65... Kg5 {[%clk 0:00:18.1]} 66. Kg3 {[%clk 0:00:25.1]} 66...
f4+ {[%clk 0:00:19]} 67. Kf3 {[%clk 0:00:25.3]} 67... Kf5 {[%clk 0:00:19.9]} 68.
Kf2 {[%clk 0:00:25.6]} 68... Kg4 {[%clk 0:00:20.8]} 69. Kg2 {[%clk 0:00:25.7]}
69... f3+ {[%clk 0:00:21.5]} 70. Kf2 {[%clk 0:00:25.9]} 70... Kf4 {[%clk
0:00:22.4]} 71. Kf1 {[%clk 0:00:26.1]} 71... Kg3 {[%clk 0:00:23.1]} 72. Kg1
{[%clk 0:00:26.3]} 72... f2+ {[%clk 0:00:23.7]} 73. Kf1 {[%clk 0:00:26.4]} 73...
Kf3 {[%clk 0:00:24.6]} 1/2-1/2